[Event "Late-Titled-Tuesday-Blitz-May-07-2024"]
[Site "Chess.com"]
[Date "2024.05.07"]
[Round "6"]
[White "lamomiajunior"]
[Black "wannabe2700"]
[Result "1-0"]
[WhiteElo "2765"]
[BlackElo "2556"]
[TimeControl "180+1"]
[EndTime "15:06:47 PDT"]
[Termination "lamomiajunior won by checkmate"]

1. d4 {[%clk 0:03:00.9]} 1... a5 {[%clk 0:03:00.9]} 2. e4 {[%clk 0:03:00.5]}
2... Ra6 {[%clk 0:03:01.8]} 3. Bxa6 {[%clk 0:03:00.6]} 3... Nxa6 {[%clk
0:03:02.2]} 4. Nf3 {[%clk 0:02:59.3]} 4... b6 {[%clk 0:03:03.1]} 5. O-O {[%clk
0:02:59.1]} 5... Bb7 {[%clk 0:03:04]} 6. Re1 {[%clk 0:02:59.5]} 6... e6 {[%clk
0:03:04.1]} 7. c4 {[%clk 0:02:58.6]} 7... Ne7 {[%clk 0:03:04]} 8. Nc3 {[%clk
0:02:59.1]} 8... Ng6 {[%clk 0:03:04]} 9. d5 {[%clk 0:02:58.1]} 9... Be7 {[%clk
0:03:01]} 10. Be3 {[%clk 0:02:55.5]} 10... O-O {[%clk 0:03:00.1]} 11. Qd2 {[%clk
0:02:53.6]} 11... Nc5 {[%clk 0:02:59]} 12. Rad1 {[%clk 0:02:52.7]} 12... Qc8
{[%clk 0:02:46.7]} 13. e5 {[%clk 0:02:50.4]} 13... d6 {[%clk 0:02:42.4]} 14.
exd6 {[%clk 0:02:35.3]} 14... cxd6 {[%clk 0:02:35.1]} 15. Bg5 {[%clk 0:02:27.2]}
15... f6 {[%clk 0:02:32]} 16. Be3 {[%clk 0:02:25.7]} 16... e5 {[%clk 0:02:31.4]}
17. b3 {[%clk 0:02:17.7]} 17... h6 {[%clk 0:02:28.3]} 18. Nb5 {[%clk 0:02:11.3]}
18... f5 {[%clk 0:02:26.5]} 19. Bxc5 {[%clk 0:02:08.6]} 19... bxc5 {[%clk
0:02:25.2]} 20. Qxa5 {[%clk 0:02:03.7]} 20... e4 {[%clk 0:02:24.1]} 21. Nd2
{[%clk 0:02:02.1]} 21... Nf4 {[%clk 0:02:13.5]} 22. Nf1 {[%clk 0:01:53.8]} 22...
Bd8 {[%clk 0:02:07.7]} 23. Qa7 {[%clk 0:01:50.4]} 23... Rf6 {[%clk 0:02:01.6]}
24. Ng3 {[%clk 0:01:46.7]} 24... Rg6 {[%clk 0:01:58]} 25. Qa4 {[%clk 0:00:58.3]}
25... h5 {[%clk 0:01:56.9]} 26. Na7 {[%clk 0:00:54.7]} 26... Qc7 {[%clk
0:01:28.2]} 27. Qe8+ {[%clk 0:00:53.5]} 27... Kh7 {[%clk 0:01:28.4]} 28. Nb5
{[%clk 0:00:51.1]} 28... Qa5 {[%clk 0:01:25.2]} 29. b4 {[%clk 0:00:27.7]} 29...
cxb4 {[%clk 0:01:23.4]} 30. Nxf5 {[%clk 0:00:17.5]} 30... Rxg2+ {[%clk 0:01:02]}
31. Kh1 {[%clk 0:00:17.8]} 31... Qxa2 {[%clk 0:00:59.8]} 32. Qxe4 {[%clk
0:00:13.5]} 32... Rxh2+ {[%clk 0:00:44.5]} 33. Kxh2 {[%clk 0:00:13.9]} 33...
Qxf2+ {[%clk 0:00:44.6]} 34. Kh1 {[%clk 0:00:14.8]} 34... g6 {[%clk 0:00:41.4]}
35. Rf1 {[%clk 0:00:15.3]} 35... Qe2 {[%clk 0:00:31.2]} 36. Qxf4 {[%clk
0:00:14.4]} 36... Bc8 {[%clk 0:00:08.9]} 37. Ng3 {[%clk 0:00:13.1]} 37... Qc2
{[%clk 0:00:06.5]} 38. Rde1 {[%clk 0:00:13]} 38... Bg4 {[%clk 0:00:03.8]} 39.
Nxd6 {[%clk 0:00:12.7]} 39... Bc7 {[%clk 0:00:01.9]} 40. Qf7+ {[%clk 0:00:12.4]}
40... Kh6 {[%clk 0:00:02.1]} 41. Qxc7 {[%clk 0:00:10.8]} 41... h4 {[%clk
0:00:02]} 42. Nf7+ {[%clk 0:00:11]} 42... Kg7 {[%clk 0:00:02.5]} 43. Qe5+ {[%clk
0:00:11.2]} 43... Kh7 {[%clk 0:00:02.3]} 44. Qh8# {[%clk 0:00:12.1]} 1-0

[Event "Late-Titled-Tuesday-Blitz-May-07-2024"]
[Site "Chess.com"]
[Date "2024.05.07"]
[Round "6"]
[White "besarquis"]
[Black "ccccvhhhj"]
[Result "1/2-1/2"]
[WhiteElo "2305"]
[BlackElo "2483"]
[TimeControl "180+1"]
[EndTime "15:06:49 PDT"]
[Termination "Game drawn by repetition"]

1. e4 {[%clk 0:03:00.9]} 1... e6 {[%clk 0:03:00]} 2. d4 {[%clk 0:02:59.6]} 2...
d5 {[%clk 0:03:00.9]} 3. exd5 {[%clk 0:02:59.5]} 3... exd5 {[%clk 0:03:01.1]} 4.
Bd3 {[%clk 0:03:00.1]} 4... Nf6 {[%clk 0:02:59.3]} 5. Nf3 {[%clk 0:03:00.3]}
5... Bg4 {[%clk 0:02:59.6]} 6. h3 {[%clk 0:02:59.6]} 6... Bh5 {[%clk 0:02:59.3]}
7. O-O {[%clk 0:02:59.8]} 7... Be7 {[%clk 0:03:00.1]} 8. Nbd2 {[%clk 0:02:59.5]}
8... O-O {[%clk 0:02:59.4]} 9. Re1 {[%clk 0:02:59.7]} 9... c6 {[%clk 0:02:59.5]}
10. Nf1 {[%clk 0:02:59.6]} 10... Bd6 {[%clk 0:02:54.7]} 11. Ng3 {[%clk
0:02:58.5]} 11... Bg6 {[%clk 0:02:53.5]} 12. Ne5 {[%clk 0:02:54.8]} 12... Nbd7
{[%clk 0:02:51.1]} 13. f4 {[%clk 0:02:47.2]} 13... Bxd3 {[%clk 0:02:50.1]} 14.
Qxd3 {[%clk 0:02:45.9]} 14... c5 {[%clk 0:02:44.3]} 15. Nf5 {[%clk 0:02:44.2]}
15... Qc7 {[%clk 0:02:34.7]} 16. Be3 {[%clk 0:02:33]} 16... c4 {[%clk
0:02:29.3]} 17. Qd1 {[%clk 0:02:23.7]} 17... g6 {[%clk 0:02:15.2]} 18. Nxd6
{[%clk 0:02:14.7]} 18... Qxd6 {[%clk 0:02:14.8]} 19. Qf3 {[%clk 0:02:13.2]}
19... b5 {[%clk 0:02:07.5]} 20. Re2 {[%clk 0:02:05.9]} 20... Ne4 {[%clk
0:02:07.6]} 21. Rf1 {[%clk 0:01:57.1]} 21... f5 {[%clk 0:02:00.2]} 22. g4 {[%clk
0:01:41]} 22... a5 {[%clk 0:01:40.1]} 23. g5 {[%clk 0:01:40.1]} 23... b4 {[%clk
0:01:38.1]} 24. h4 {[%clk 0:01:39.8]} 24... a4 {[%clk 0:01:36.4]} 25. h5 {[%clk
0:01:35]} 25... c3 {[%clk 0:00:45.2]} 26. bxc3 {[%clk 0:01:22.7]} 26... bxc3
{[%clk 0:00:33.7]} 27. hxg6 {[%clk 0:01:21.8]} 27... hxg6 {[%clk 0:00:28.2]} 28.
Rh2 {[%clk 0:01:21.8]} 28... Nxe5 {[%clk 0:00:17.5]} 29. dxe5 {[%clk 0:01:18.2]}
29... Qe7 {[%clk 0:00:17.7]} 30. Bd4 {[%clk 0:00:52.9]} 30... Qg7 {[%clk
0:00:18.1]} 31. Qe3 {[%clk 0:00:50.9]} 31... Nd2 {[%clk 0:00:06.9]} 32. Rd1
{[%clk 0:00:37.9]} 32... Rab8 {[%clk 0:00:06.8]} 33. e6 {[%clk 0:00:35.3]} 33...
Qxd4 {[%clk 0:00:07.7]} 34. Qxd4 {[%clk 0:00:33.7]} 34... Nf3+ {[%clk
0:00:08.3]} 35. Kf2 {[%clk 0:00:31.1]} 35... Nxd4 {[%clk 0:00:09.2]} 36. Rxd4
{[%clk 0:00:30.9]} 36... Rfe8 {[%clk 0:00:08.9]} 37. Rxd5 {[%clk 0:00:20.7]}
37... Rxe6 {[%clk 0:00:09.3]} 38. Rd7 {[%clk 0:00:18.5]} 38... Rb2 {[%clk
0:00:09]} 39. Rd8+ {[%clk 0:00:12.3]} 39... Kg7 {[%clk 0:00:08.6]} 40. Rd7+
{[%clk 0:00:08.9]} 40... Kg8 {[%clk 0:00:09]} 41. Rd8+ {[%clk 0:00:07.5]} 41...
Kg7 {[%clk 0:00:08.3]} 42. Rd7+ {[%clk 0:00:08]} 42... Kg8 {[%clk 0:00:08.6]}
1/2-1/2

[Event "Late-Titled-Tuesday-Blitz-May-07-2024"]
[Site "Chess.com"]
[Date "2024.05.07"]
[Round "6"]
[White "realburq"]
[Black "xakevicius91"]
[Result "1-0"]
[WhiteElo "2357"]
[BlackElo "2502"]
[TimeControl "180+1"]
[EndTime "15:06:50 PDT"]
[Termination "realburq won on time"]

1. e4 {[%clk 0:03:00.9]} 1... c5 {[%clk 0:02:55.8]} 2. c3 {[%clk 0:03:00.5]}
2... g6 {[%clk 0:02:43]} 3. d4 {[%clk 0:03:00.2]} 3... cxd4 {[%clk 0:02:43.9]}
4. cxd4 {[%clk 0:03:01.1]} 4... d5 {[%clk 0:02:44.6]} 5. e5 {[%clk 0:02:56.7]}
5... a6 {[%clk 0:02:44.9]} 6. Nc3 {[%clk 0:02:55.3]} 6... Nc6 {[%clk 0:02:44.4]}
7. h3 {[%clk 0:02:55.2]} 7... Bg7 {[%clk 0:02:44.7]} 8. Nf3 {[%clk 0:02:55.5]}
8... f6 {[%clk 0:02:43.5]} 9. Be2 {[%clk 0:02:36.7]} 9... Nh6 {[%clk 0:02:35.4]}
10. exf6 {[%clk 0:02:32.9]} 10... exf6 {[%clk 0:02:35.5]} 11. O-O {[%clk
0:02:29.2]} 11... O-O {[%clk 0:02:35.7]} 12. b3 {[%clk 0:02:26.2]} 12... Nf5
{[%clk 0:02:34.4]} 13. Ba3 {[%clk 0:02:26]} 13... Re8 {[%clk 0:02:33.9]} 14. Re1
{[%clk 0:02:20.1]} 14... b5 {[%clk 0:02:33]} 15. Bc5 {[%clk 0:02:17]} 15... Be6
{[%clk 0:02:31.8]} 16. g4 {[%clk 0:02:06.3]} 16... Nd6 {[%clk 0:02:27.9]} 17.
Bd3 {[%clk 0:02:03.1]} 17... Qd7 {[%clk 0:02:22.7]} 18. Nh2 {[%clk 0:01:47.9]}
18... Nb7 {[%clk 0:02:21.1]} 19. b4 {[%clk 0:01:37.2]} 19... Nd6 {[%clk
0:02:19]} 20. Qf3 {[%clk 0:01:34.2]} 20... Nc4 {[%clk 0:02:16.1]} 21. Re2 {[%clk
0:01:16.2]} 21... Bf7 {[%clk 0:02:14.6]} 22. Rae1 {[%clk 0:01:14.7]} 22... Rxe2
{[%clk 0:02:09.8]} 23. Rxe2 {[%clk 0:01:14.9]} 23... Re8 {[%clk 0:01:31]} 24.
Rxe8+ {[%clk 0:01:14.5]} 24... Qxe8 {[%clk 0:01:31.9]} 25. Nxd5 {[%clk
0:01:10.6]} 25... Qe1+ {[%clk 0:01:29.9]} 26. Nf1 {[%clk 0:01:05.8]} 26... Qe6
{[%clk 0:01:17.6]} 27. Nf4 {[%clk 0:00:54.6]} 27... Qd7 {[%clk 0:01:12.5]} 28.
Ne3 {[%clk 0:00:43.8]} 28... Nxd4 {[%clk 0:01:07.8]} 29. Qa8+ {[%clk 0:00:41.6]}
29... Be8 {[%clk 0:01:06.4]} 30. Bxd4 {[%clk 0:00:40.8]} 30... Nd6 {[%clk
0:00:48.7]} 31. Nfd5 {[%clk 0:00:32.5]} 31... h5 {[%clk 0:00:38.4]} 32. Nxf6+
{[%clk 0:00:26.8]} 32... Bxf6 {[%clk 0:00:37.8]} 33. Bxf6 {[%clk 0:00:26.1]}
33... hxg4 {[%clk 0:00:35.3]} 34. hxg4 {[%clk 0:00:25.8]} 34... Qe6 {[%clk
0:00:31.6]} 35. Bxg6 {[%clk 0:00:19]} 35... Qxf6 {[%clk 0:00:20.7]} 36. Bxe8
{[%clk 0:00:18.9]} 36... Kg7 {[%clk 0:00:16.9]} 37. Bh5 {[%clk 0:00:16.9]} 37...
Qa1+ {[%clk 0:00:16.4]} 38. Kg2 {[%clk 0:00:16.5]} 38... Qxa2 {[%clk 0:00:16.9]}
39. Qa7+ {[%clk 0:00:16.1]} 39... Kh8 {[%clk 0:00:16.2]} 40. Qe7 {[%clk
0:00:15.1]} 40... Qd2 {[%clk 0:00:08.7]} 41. Nf5 {[%clk 0:00:11.6]} 41... Qd5+
{[%clk 0:00:06.9]} 42. Kg3 {[%clk 0:00:09.5]} 1-0

[Event "Late-Titled-Tuesday-Blitz-May-07-2024"]
[Site "Chess.com"]
[Date "2024.05.07"]
[Round "6"]
[White "Abund"]
[Black "TigrVShlyape"]
[Result "0-1"]
[WhiteElo "2776"]
[BlackElo "2971"]
[TimeControl "180+1"]
[EndTime "15:06:53 PDT"]
[Termination "TigrVShlyape won by resignation"]

1. e4 {[%clk 0:03:00.9]} 1... e5 {[%clk 0:02:59.5]} 2. Nf3 {[%clk 0:03:00.8]}
2... Nc6 {[%clk 0:02:59.8]} 3. Bb5 {[%clk 0:03:01.1]} 3... Nf6 {[%clk
0:02:59.3]} 4. d3 {[%clk 0:02:57.8]} 4... d6 {[%clk 0:02:58.8]} 5. c3 {[%clk
0:02:56.2]} 5... Bd7 {[%clk 0:02:58.9]} 6. O-O {[%clk 0:02:56]} 6... g6 {[%clk
0:02:58.9]} 7. Re1 {[%clk 0:02:52.2]} 7... Bg7 {[%clk 0:02:59.2]} 8. Nbd2 {[%clk
0:02:50.3]} 8... O-O {[%clk 0:02:59.3]} 9. Nf1 {[%clk 0:02:39.1]} 9... Re8
{[%clk 0:02:55.4]} 10. Ng3 {[%clk 0:02:37.9]} 10... Na5 {[%clk 0:02:45.2]} 11.
Ba4 {[%clk 0:02:27.9]} 11... Bxa4 {[%clk 0:02:43.3]} 12. Qxa4 {[%clk 0:02:28.8]}
12... Nc6 {[%clk 0:02:41.5]} 13. d4 {[%clk 0:02:22]} 13... Nd7 {[%clk
0:02:32.4]} 14. Bg5 {[%clk 0:02:17.9]} 14... Bf6 {[%clk 0:02:30]} 15. Bh6 {[%clk
0:02:11.5]} 15... Bg7 {[%clk 0:02:22.5]} 16. Bg5 {[%clk 0:02:11.6]} 16... Bf6
{[%clk 0:02:22.2]} 17. Bh6 {[%clk 0:02:08.4]} 17... Nb6 {[%clk 0:02:18.1]} 18.
Qd1 {[%clk 0:02:05.6]} 18... d5 {[%clk 0:02:16.5]} 19. exd5 {[%clk 0:01:56.6]}
19... Qxd5 {[%clk 0:02:14.3]} 20. dxe5 {[%clk 0:01:31.7]} 20... Nxe5 {[%clk
0:02:12.5]} 21. Qxd5 {[%clk 0:01:19.1]} 21... Nxd5 {[%clk 0:02:11.5]} 22. Nxe5
{[%clk 0:01:17.8]} 22... Rxe5 {[%clk 0:02:07]} 23. Rxe5 {[%clk 0:01:11.6]} 23...
Bxe5 {[%clk 0:02:06.9]} 24. Re1 {[%clk 0:01:11.3]} 24... f6 {[%clk 0:01:55.5]}
25. Bc1 {[%clk 0:00:58.4]} 25... Kf7 {[%clk 0:01:53.1]} 26. Kf1 {[%clk
0:00:58.3]} 26... b5 {[%clk 0:01:50.9]} 27. Ne4 {[%clk 0:00:57.1]} 27... a5
{[%clk 0:01:48.9]} 28. g3 {[%clk 0:00:53.1]} 28... c6 {[%clk 0:01:46.1]} 29. Nc5
{[%clk 0:00:46.3]} 29... a4 {[%clk 0:01:42.9]} 30. Nd3 {[%clk 0:00:43.8]} 30...
Bd6 {[%clk 0:01:42]} 31. Bd2 {[%clk 0:00:39.7]} 31... h5 {[%clk 0:01:39.1]} 32.
h4 {[%clk 0:00:38.4]} 32... c5 {[%clk 0:01:36]} 33. a3 {[%clk 0:00:29.3]} 33...
c4 {[%clk 0:01:33]} 34. Nc1 {[%clk 0:00:26.8]} 34... Nc7 {[%clk 0:01:29.2]} 35.
Ne2 {[%clk 0:00:26.5]} 35... Ne6 {[%clk 0:01:29.1]} 36. Be3 {[%clk 0:00:24.9]}
36... Rd8 {[%clk 0:01:24.2]} 37. Rd1 {[%clk 0:00:23.7]} 37... Bc7 {[%clk
0:01:19.8]} 38. Rxd8 {[%clk 0:00:23.6]} 38... Bxd8 {[%clk 0:01:19.8]} 39. Nd4
{[%clk 0:00:23.3]} 39... Nxd4 {[%clk 0:01:19.2]} 40. Bxd4 {[%clk 0:00:24.2]}
40... Ke6 {[%clk 0:01:18.1]} 41. Ke2 {[%clk 0:00:23.9]} 41... Kf5 {[%clk
0:01:17.6]} 42. Kf3 {[%clk 0:00:12.2]} 42... g5 {[%clk 0:01:17]} 43. Be3 {[%clk
0:00:09.3]} 43... Be7 {[%clk 0:01:16.2]} 44. Bd4 {[%clk 0:00:09.5]} 44... Bd6
{[%clk 0:01:14.5]} 45. Be3 {[%clk 0:00:08.2]} 45... g4+ {[%clk 0:01:14.6]} 46.
Ke2 {[%clk 0:00:08.1]} 46... Ke4 {[%clk 0:01:15.2]} 47. Bd2 {[%clk 0:00:04.1]}
47... f5 {[%clk 0:01:15.5]} 48. Bg5 {[%clk 0:00:03.3]} 48... f4 {[%clk 0:01:15]}
49. gxf4 {[%clk 0:00:02.2]} 49... Bxf4 {[%clk 0:01:15.2]} 50. Be7 {[%clk
0:00:02]} 50... Bc1 {[%clk 0:01:14.6]} 51. Kd1 {[%clk 0:00:01.8]} 51... Bxb2
{[%clk 0:01:00.4]} 52. Kc2 {[%clk 0:00:01.8]} 52... Kf3 {[%clk 0:00:59.8]} 53.
Bc5 {[%clk 0:00:01.3]} 53... Bxa3 {[%clk 0:00:59.2]} 54. Bxa3 {[%clk 0:00:01.5]}
54... Kxf2 {[%clk 0:00:59.8]} 55. Bc5+ {[%clk 0:00:01.5]} 55... Kf3 {[%clk
0:00:59]} 56. Kb2 {[%clk 0:00:01.9]} 56... g3 {[%clk 0:00:57.6]} 57. Ka3 {[%clk
0:00:02.4]} 57... g2 {[%clk 0:00:58.1]} 58. Kb4 {[%clk 0:00:03]} 58... Kg3
{[%clk 0:00:58]} 59. Bg1 {[%clk 0:00:02.4]} 59... Kxh4 {[%clk 0:00:57.2]} 60.
Kxb5 {[%clk 0:00:02.7]} 60... a3 {[%clk 0:00:57.3]} 61. Kxc4 {[%clk 0:00:01.9]}
61... a2 {[%clk 0:00:57.6]} 62. Bd4 {[%clk 0:00:01.9]} 62... a1=Q {[%clk
0:00:57]} 0-1

[Event "Late-Titled-Tuesday-Blitz-May-07-2024"]
[Site "Chess.com"]
[Date "2024.05.07"]
[Round "6"]
[White "Zhigalko_Sergei"]
[Black "Mikayel99"]
[Result "1-0"]
[WhiteElo "2879"]
[BlackElo "2594"]
[TimeControl "180+1"]
[EndTime "15:06:53 PDT"]
[Termination "Zhigalko_Sergei won by checkmate"]

1. e4 {[%clk 0:03:00.9]} 1... c5 {[%clk 0:02:56.7]} 2. Nf3 {[%clk 0:03:00.8]}
2... d6 {[%clk 0:02:57.2]} 3. d4 {[%clk 0:03:00.9]} 3... cxd4 {[%clk 0:02:58.1]}
4. Qxd4 {[%clk 0:03:01.8]} 4... Nc6 {[%clk 0:02:57]} 5. Bb5 {[%clk 0:03:01.8]}
5... a6 {[%clk 0:02:57.1]} 6. Bxc6+ {[%clk 0:03:02.2]} 6... bxc6 {[%clk
0:02:58]} 7. c4 {[%clk 0:03:02.9]} 7... e5 {[%clk 0:02:57.9]} 8. Qd3 {[%clk
0:03:01.7]} 8... Be7 {[%clk 0:02:57.9]} 9. O-O {[%clk 0:03:00.7]} 9... Nf6
{[%clk 0:02:58.2]} 10. Nc3 {[%clk 0:02:53]} 10... O-O {[%clk 0:02:53.5]} 11. c5
{[%clk 0:02:53.2]} 11... Qc7 {[%clk 0:02:48.2]} 12. cxd6 {[%clk 0:02:50.2]}
12... Bxd6 {[%clk 0:02:49.1]} 13. Bg5 {[%clk 0:02:48.8]} 13... Be7 {[%clk
0:02:46.3]} 14. Rac1 {[%clk 0:02:46.4]} 14... h6 {[%clk 0:02:45.2]} 15. Bxf6
{[%clk 0:02:20]} 15... Bxf6 {[%clk 0:02:44.2]} 16. Qe3 {[%clk 0:01:33.4]} 16...
Qa5 {[%clk 0:02:12.3]} 17. b3 {[%clk 0:01:17.3]} 17... Rd8 {[%clk 0:01:53.5]}
18. Na4 {[%clk 0:01:16.7]} 18... Bg4 {[%clk 0:01:53.2]} 19. h3 {[%clk 0:00:46]}
19... Bxf3 {[%clk 0:01:50.7]} 20. Qxf3 {[%clk 0:00:46.9]} 20... Qd2 {[%clk
0:01:31.7]} 21. Nb6 {[%clk 0:00:20.3]} 21... Rab8 {[%clk 0:01:25.6]} 22. Rxc6
{[%clk 0:00:19.6]} 22... Qxa2 {[%clk 0:00:52.6]} 23. Nd5 {[%clk 0:00:19.7]}
23... Bg5 {[%clk 0:00:46.1]} 24. b4 {[%clk 0:00:14.5]} 24... a5 {[%clk 0:00:37]}
25. Rc7 {[%clk 0:00:13.8]} 25... Rf8 {[%clk 0:00:29.6]} 26. Ra7 {[%clk
0:00:13.8]} 26... a4 {[%clk 0:00:25.7]} 27. g3 {[%clk 0:00:14]} 27... Qb3 {[%clk
0:00:23.1]} 28. Qf5 {[%clk 0:00:07.4]} 28... Ra8 {[%clk 0:00:19.3]} 29. Rxa8
{[%clk 0:00:05.2]} 29... Rxa8 {[%clk 0:00:20.2]} 30. h4 {[%clk 0:00:05.2]} 30...
a3 {[%clk 0:00:12.2]} 31. hxg5 {[%clk 0:00:04.8]} 31... hxg5 {[%clk 0:00:13]}
32. Qxg5 {[%clk 0:00:03.4]} 32... a2 {[%clk 0:00:13.4]} 33. Qxe5 {[%clk
0:00:03.5]} 33... Qb1 {[%clk 0:00:12.5]} 34. Qa1 {[%clk 0:00:03.6]} 34... Qb3
{[%clk 0:00:11.2]} 35. Re1 {[%clk 0:00:03.5]} 35... Rc8 {[%clk 0:00:08.4]} 36.
Kg2 {[%clk 0:00:03.4]} 36... Rc2 {[%clk 0:00:08.3]} 37. Qe5 {[%clk 0:00:03.5]}
37... Qb1 {[%clk 0:00:02.7]} 38. Qe8+ {[%clk 0:00:01.8]} 38... Kh7 {[%clk
0:00:02.9]} 39. Rxb1 {[%clk 0:00:01.5]} 39... axb1=Q {[%clk 0:00:03.3]} 40. Qxf7
{[%clk 0:00:02]} 40... Rc6 {[%clk 0:00:01.4]} 41. Qf5+ {[%clk 0:00:01.9]} 41...
Kh8 {[%clk 0:00:01.2]} 42. Ne7 {[%clk 0:00:02.4]} 42... Rh6 {[%clk 0:00:01]} 43.
Qf8+ {[%clk 0:00:02.7]} 43... Kh7 {[%clk 0:00:01.7]} 44. Qg8# {[%clk 0:00:03.6]}
1-0

[Event "Late-Titled-Tuesday-Blitz-May-07-2024"]
[Site "Chess.com"]
[Date "2024.05.07"]
[Round "6"]
[White "StellarChess"]
[Black "IndianSchoolOfSuffering"]
[Result "0-1"]
[WhiteElo "2616"]
[BlackElo "2425"]
[TimeControl "180+1"]
[EndTime "15:06:54 PDT"]
[Termination "IndianSchoolOfSuffering won on time"]

1. d4 {[%clk 0:03:00.9]} 1... Nf6 {[%clk 0:02:58.8]} 2. Bg5 {[%clk 0:03:00.4]}
2... Ne4 {[%clk 0:02:55.9]} 3. Bf4 {[%clk 0:02:59.5]} 3... c5 {[%clk 0:02:55.5]}
4. f3 {[%clk 0:02:56.2]} 4... Qa5+ {[%clk 0:02:54.3]} 5. c3 {[%clk 0:02:56.4]}
5... Nf6 {[%clk 0:02:53.2]} 6. Nd2 {[%clk 0:02:56.1]} 6... cxd4 {[%clk
0:02:53.2]} 7. Nb3 {[%clk 0:02:56.1]} 7... Qb6 {[%clk 0:02:53.2]} 8. Qxd4 {[%clk
0:02:55.9]} 8... Nc6 {[%clk 0:02:53.1]} 9. Qxb6 {[%clk 0:02:56.1]} 9... axb6
{[%clk 0:02:54]} 10. Nd4 {[%clk 0:02:56.9]} 10... e5 {[%clk 0:02:54.2]} 11. Nxc6
{[%clk 0:02:57.3]} 11... exf4 {[%clk 0:02:54.9]} 12. Nd4 {[%clk 0:02:57.3]}
12... d5 {[%clk 0:02:55.4]} 13. Kf2 {[%clk 0:02:56.8]} 13... Bd7 {[%clk
0:02:53.3]} 14. g3 {[%clk 0:02:57]} 14... fxg3+ {[%clk 0:02:50.1]} 15. hxg3
{[%clk 0:02:57.9]} 15... b5 {[%clk 0:02:45.1]} 16. a3 {[%clk 0:02:56.6]} 16...
b4 {[%clk 0:02:44.2]} 17. cxb4 {[%clk 0:02:52.4]} 17... Bxb4 {[%clk 0:02:44]}
18. Rd1 {[%clk 0:02:51.1]} 18... Bc5 {[%clk 0:02:43.4]} 19. e3 {[%clk
0:02:51.1]} 19... O-O {[%clk 0:02:42.1]} 20. Nh3 {[%clk 0:02:50.9]} 20... Rfe8
{[%clk 0:02:40.6]} 21. Nf4 {[%clk 0:02:49.7]} 21... Re7 {[%clk 0:02:24.3]} 22.
Nh5 {[%clk 0:02:34.4]} 22... Nxh5 {[%clk 0:02:15]} 23. Rxh5 {[%clk 0:02:35.3]}
23... Bc6 {[%clk 0:02:09.8]} 24. Rc1 {[%clk 0:02:24.9]} 24... Bxd4 {[%clk
0:02:07.2]} 25. exd4 {[%clk 0:02:25.8]} 25... Rae8 {[%clk 0:02:03.7]} 26. Bd3
{[%clk 0:02:24]} 26... g6 {[%clk 0:02:01.3]} 27. Rhh1 {[%clk 0:02:22.2]} 27...
Re3 {[%clk 0:01:50.7]} 28. Rcd1 {[%clk 0:02:19.4]} 28... Kg7 {[%clk 0:01:43.2]}
29. Rd2 {[%clk 0:02:05.7]} 29... h5 {[%clk 0:01:41.5]} 30. Rc1 {[%clk
0:01:57.3]} 30... R3e6 {[%clk 0:01:36.1]} 31. b4 {[%clk 0:01:52.4]} 31... Rf6
{[%clk 0:01:33.9]} 32. b5 {[%clk 0:01:44.7]} 32... Bd7 {[%clk 0:01:34]} 33. Rc7
{[%clk 0:01:40.8]} 33... Bg4 {[%clk 0:01:33.5]} 34. Be2 {[%clk 0:01:31.4]} 34...
Rxe2+ {[%clk 0:00:59.8]} 35. Kxe2 {[%clk 0:01:24.2]} 35... Rxf3 {[%clk
0:00:55.9]} 36. Rxb7 {[%clk 0:01:11.8]} 36... Rxg3+ {[%clk 0:00:55.1]} 37. Kf2
{[%clk 0:01:10.5]} 37... Rf3+ {[%clk 0:00:54.6]} 38. Kg2 {[%clk 0:01:09.2]}
38... Rxa3 {[%clk 0:00:55.1]} 39. Rf2 {[%clk 0:01:06.7]} 39... Bf5 {[%clk
0:00:51.8]} 40. b6 {[%clk 0:01:05.5]} 40... h4 {[%clk 0:00:51.8]} 41. Rc7 {[%clk
0:01:02.3]} 41... h3+ {[%clk 0:00:51.4]} 42. Kh2 {[%clk 0:01:02.2]} 42... Rb3
{[%clk 0:00:51.4]} 43. b7 {[%clk 0:01:02.1]} 43... Kh6 {[%clk 0:00:49.6]} 44.
Rxf7 {[%clk 0:00:59.5]} 44... Kg5 {[%clk 0:00:49.5]} 45. Rc7 {[%clk 0:00:56.6]}
45... Kg4 {[%clk 0:00:48.6]} 46. Ra2 {[%clk 0:00:51.3]} 46... Be4 {[%clk
0:00:46.5]} 47. Re7 {[%clk 0:00:30.3]} 47... g5 {[%clk 0:00:41.5]} 48. Rf2
{[%clk 0:00:26.3]} 48... Rb1 {[%clk 0:00:38.3]} 49. Rxe4+ {[%clk 0:00:25.7]}
49... dxe4 {[%clk 0:00:38.4]} 50. Rf7 {[%clk 0:00:18.4]} 50... e3 {[%clk
0:00:37.7]} 51. Re7 {[%clk 0:00:14.7]} 51... Rb2+ {[%clk 0:00:34.6]} 52. Kh1
{[%clk 0:00:12.4]} 52... Kf3 {[%clk 0:00:34.1]} 53. d5 {[%clk 0:00:12.4]} 53...
e2 {[%clk 0:00:34]} 54. d6 {[%clk 0:00:11.8]} 54... Rxb7 {[%clk 0:00:27]} 0-1